bitfinex-derivatives/quotes_ETHF0:USTF0_20250621
["timestamp","ask_amount","ask_price","bid_price","bid_amount"]
[1750493782250,31.37805562,2428.2,2428.1,0.06847599]
[1750493783153,31.37805562,2428.2,2428.1,0.89207599]
[1750493783355,31.37805562,2428.2,2428.1,0.06847599]
[1750493786159,30.23246,2428.2,2428.1,0.06847599]
[1750493786364,31.37800048,2428.2,2428.1,0.06847599]
[1750493792564,0.82363,2428.0,2427.9,0.82366]
[1750493792863,33.63412528,2428.0,2427.9,0.82366]
[1750493793063,34.78060745,2428.0,2427.9,0.82366]
[1750493793254,34.78060745,2428.0,2427.8,0.82367]
[1750493793554,33.63412528,2428.0,2427.8,0.82367]
[1750493794565,0.82367,2427.9,2427.8,0.82367]
[1750493796565,33.63415528,2428.0,2427.9,0.82367]
[1750493796959,0.82367,2427.9,2427.8,0.82367]
[1750493797162,2.48616528,2427.9,2427.8,0.82367]
[1750493799167,1.66249528,2427.9,2427.8,0.82367]
[1750493800768,6.318,2428.0,2427.9,0.82367]
[1750493800968,31.96963,2428.0,2427.9,0.82367]
[1750493802370,0.82367,2427.9,2427.8,0.82368]
[1750493802561,2.48616528,2427.9,2427.8,0.82368]
[1750493805568,1.66249528,2427.9,2427.8,0.82368]
[1750493807872,32.80849528,2428.0,2427.9,0.82367]
[1750493809071,33.63212528,2428.0,2427.9,1.46667]
[1750493809263,32.80849528,2428.0,2427.9,1.46667]
[1750493810372,33.63212528,2428.0,2427.9,1.46667]
[1750493813474,33.63212528,2428.0,2427.9,0.643]
[1750493813873,33.63212528,2428.0,2427.9,1.46667]
[1750493818776,33.63212528,2428.0,2427.9,2.16377]
[1750493820877,1.66249528,2428.0,2427.9,2.16377]
[1750493821072,32.81049528,2428.0,2427.9,3.46157]
[1750493821375,34.78010997,2428.0,2427.9,3.46157]
[1750493821767,33.63412528,2428.0,2427.9,3.46157]
[1750493821965,32.81049528,2428.0,2427.9,3.46157]
[1750493822371,2.80879562,2428.0,2427.9,3.46157]
[1750493822565,28.46142562,2428.0,2427.9,1.46667]
[1750493822768,28.46142562,2428.0,2427.9,2.17577]
[1750493822973,27.63779562,2428.0,2427.9,2.17577]
[1750493823578,28.46142562,2428.0,2427.9,2.17577]
[1750493826278,28.46142562,2428.0,2427.9,2.24424599]
[1750493826678,28.46142562,2428.0,2427.9,1.42057599]
[1750493832078,28.46142562,2428.0,2427.9,0.06847599]
[1750493832279,29.84122562,2428.0,2427.9,0.06847599]
[1750493833881,28.17873034,2428.0,2427.9,0.06847599]
[1750493834083,29.84122562,2428.0,2427.9,0.06847599]
[1750493837178,2.05918,2427.9,2427.4,0.82383]
[1750493837387,2.48630528,2427.5,2427.3,1.50434]
[1750493837688,2.48630528,2427.5,2427.4,0.642]
[1750493837888,27.31430528,2427.5,2427.4,0.642]
[1750493839188,2.0596,2427.4,2426.6,5.73128169]
[1750493839382,2.48651528,2426.9,2426.7,2.17185]
[1750493839588,25.66604,2426.8,2426.7,1.3478]
[1750493840185,25.66604,2426.8,2426.7,1.67957138]
[1750493840390,25.66604,2426.8,2426.7,1.3478]
[1750493840982,24.842,2426.8,2426.7,1.3478]
[1750493841179,24.842,2426.8,2426.7,2.17187]
[1750493841688,24.842,2426.8,2426.7,1.3478]
[1750493842090,25.66604,2426.8,2426.6,0.82409]
[1750493842391,0.82407,2426.7,2426.5,1.51133]
[1750493842591,24.845,2426.6,2426.5,1.51133]
[1750493842889,25.66911,2426.6,2426.5,0.6872]
[1750493843291,0.82414,2426.5,2426.4,0.6937]
[1750493843885,28.04654548,2426.6,2426.4,1.51786]
[1750493844184,0.82414,2426.5,2426.4,0.6937]
[1750493845091,0.82414,2426.5,2426.4,1.51787]
[1750493845287,28.04654548,2426.6,2426.4,1.51787]
[1750493845684,0.82414,2426.5,2426.4,1.51787]
[1750493846181,28.04654548,2426.6,2426.4,1.51787]
[1750493846379,31.25434548,2426.6,2426.4,1.51787]
[1750493846580,30.43021548,2426.6,2426.4,1.51787]
[1750493846982,0.82414,2426.5,2426.4,0.6937]
[1750493848484,0.82417,2426.4,2426.3,0.82418]
[1750493848884,2.37741548,2426.4,2426.2,2.20602]
[1750493849088,26.35991,2426.3,2426.2,2.20604]
[1750493849385,0.82424,2426.2,2426.1,16.81543645]
[1750493849593,3.20165548,2426.2,2426.1,16.81543645]
[1750493849786,9.53065548,2426.2,2426.1,16.81543645]
[1750493850285,10.91805548,2426.2,2426.1,16.81543645]
[1750493852591,0.82431,2426.0,2425.9,14.85327896]
[1750493852796,31.30452548,2426.0,2425.9,14.85327896]
[1750493853185,32.58762548,2426.0,2425.9,14.85327896]
[1750493855294,34.96504096,2426.0,2425.9,14.85327896]
[1750493856899,39.96504096,2426.0,2425.9,14.85327896]
[1750493859204,39.96504096,2426.0,2425.9,13.99823896]
[1750493859408,39.96504096,2426.0,2425.9,13.13377896]
[1750493859598,39.96504096,2426.0,2425.9,11.30679896]
[1750493859795,39.96504096,2426.0,2425.9,10.32338896]
[1750493860296,39.96504096,2426.0,2425.9,8.65580896]
[1750493861399,39.96504096,2426.0,2425.9,7.81650896]
[1750493861700,39.96504096,2426.0,2425.2,0.694]
[1750493861701,0.82455,2425.3,2425.2,0.694]
[1750493861904,6.40976548,2425.3,2425.2,0.694]
[1750493862203,37.67376548,2425.3,2425.2,0.694]
[1750493862396,37.67376548,2425.3,2425.2,1.9756]
[1750493862997,37.67376548,2425.3,2425.2,2.80018]
[1750493863199,37.67376548,2425.3,2425.2,1.9756]
[1750493866102,5.58521548,2425.3,2425.2,2.80018]
[1750493866308,35.29535,2425.3,2425.2,2.80018]
[1750493867007,34.4708,2425.3,2425.2,2.80018]
[1750493867999,35.29535,2425.3,2425.2,2.80018]
[1750493868503,34.4708,2425.3,2425.2,2.80018]
[1750493868902,28.1328,2425.3,2425.2,2.80018]
[1750493869211,4.03235,2425.3,2425.2,2.80018]
[1750493869408,28.95735,2425.3,2425.2,2.80018]
[1750493869709,28.95635,2425.3,2425.2,2.80018]
[1750493869913,28.1318,2425.3,2425.2,2.86865599]
[1750493870106,28.1308,2425.3,2425.2,2.86865599]
[1750493871411,28.95535,2425.3,2425.2,2.86865599]
[1750493873811,3.2078,2425.3,2425.2,2.86865599]
[1750493874010,28.1358,2425.3,2425.2,2.86865599]
[1750493876811,3.2078,2425.3,2425.2,2.86865599]
[1750493877009,28.1318,2425.3,2425.2,2.86865599]
[1750493877203,4.03226,2425.6,2425.5,0.82448]
[1750493877408,26.90122182,2425.6,2425.5,0.82448]
[1750493878213,26.90122182,2425.6,2425.5,2.20158]
[1750493879522,26.90122182,2425.6,2425.5,1.3771]
[1750493879722,29.2786373,2425.6,2425.5,1.3771]
[1750493880221,1.97722182,2425.6,2425.5,2.20158]
[1750493880420,26.89722182,2425.6,2425.5,1.3771]
[1750493881307,26.89722182,2425.6,2425.5,2.20158]
[1750493881719,26.89722182,2425.6,2425.5,1.3771]
[1750493882221,1.97722182,2425.6,2425.5,1.3771]
[1750493882521,29.2736373,2425.6,2425.5,1.3771]
[1750493883016,32.4814373,2425.6,2425.5,1.3771]
[1750493884116,30.10402182,2425.6,2425.5,1.3771]
[1750493884311,32.4814373,2425.6,2425.5,2.20158]
[1750493885619,7.5624373,2425.6,2425.5,2.20158]
[1750493885924,32.4784373,2425.6,2425.5,2.20158]
[1750493886120,32.4784373,2425.6,2425.5,2.27005599]
[1750493886325,4.36056182,2425.6,2425.5,2.27005599]
[1750493886622,4.36056182,2425.6,2425.5,4.64747147]
[1750493887522,6.40951548,2426.1,2426.0,0.82431]
[1750493887723,32.51847198,2426.1,2426.0,0.82431]
[1750493889329,4.3977565,2426.1,2426.0,0.82431]
[1750493889527,29.3167565,2426.1,2426.0,0.82431]
[1750493890625,1.1899565,2426.1,2426.0,0.82431]
[1750493890926,26.1099565,2426.1,2426.0,0.82431]
[1750493891228,24.92,2426.1,2426.0,0.82431]
[1750493892126,3.20163548,2426.3,2426.2,0.82424]
[1750493892328,29.30739771,2426.3,2426.2,0.82424]
[1750493895526,28.11963548,2426.3,2426.2,0.82424]
[1750493897329,27.29541548,2426.3,2426.2,0.82424]
[1750493899925,4.03198,2426.4,2426.3,0.82421]
[1750493900229,32.03419548,2426.4,2426.3,0.82421]
[1750493900522,31.21001548,2426.4,2426.3,0.82421]
[1750493900726,6.29101548,2426.4,2426.3,0.82421]
[1750493900930,31.21001548,2426.4,2426.3,0.82421]
[1750493903433,33.21981355,2426.4,2426.3,0.82421]
[1750493904633,5.09301355,2426.4,2426.3,0.82421]
[1750493904824,28.82138548,2426.4,2426.3,0.82421]
[1750493905029,30.00707358,2426.4,2426.3,0.82421]
[1750493905233,28.82138548,2426.4,2426.3,0.82421]
[1750493905433,30.00683482,2426.4,2426.3,0.82421]
[1750493908526,26.44397,2426.4,2426.3,0.82421]
[1750493908726,27.61589546,2426.4,2426.3,0.82421]
[1750493915648,27.61589546,2426.4,2426.3,0.89268599]
[1750493917143,26.44397,2426.4,2426.3,0.89268599]
[1750493917342,27.61868088,2426.4,2426.3,0.89268599]
[1750493917949,26.79451088,2426.4,2426.3,0.89268599]
[1750493918147,27.61868088,2426.4,2426.3,0.89268599]
[1750493920751,27.61868088,2426.4,2426.3,0.06847599]
[1750493920943,28.98838088,2426.4,2426.3,0.06847599]
[1750493921551,32.19618088,2426.4,2426.3,0.06847599]
[1750493926354,36.37201088,2426.4,2425.7,3.2078]
[1750493926558,2.37741548,2425.8,2425.7,0.82438]
[1750493926754,28.46812636,2425.8,2425.7,0.82438]
[1750493927156,29.29250636,2425.8,2425.5,1.52236]
[1750493927354,1.17471088,2425.7,2425.5,1.52236]
[1750493927555,1.17471088,2425.7,2425.6,0.82445]
[1750493927751,26.09071088,2425.7,2425.5,0.6979]
[1750493927947,24.916,2425.7,2425.5,1.52235]
[1750493928156,25.74042,2425.7,2425.5,1.52235]
[1750493928555,2.37741548,2425.6,2425.5,1.52235]
[1750493928757,2.37741548,2425.6,2425.5,0.6979]
[1750493929157,3.20186548,2425.6,2425.5,0.6979]
[1750493929862,3.20186548,2425.6,2425.5,0.76637599]
[1750493931576,2.37741548,2425.6,2425.5,1.59085599]
[1750493932266,3.20186548,2425.6,2425.5,1.59085599]
[1750493932462,2.37741548,2425.6,2425.5,1.59085599]
[1750493932976,25.74044,2425.7,2425.6,0.82445]
[1750493934175,0.82445,2425.6,2425.5,1.59082599]
[1750493939569,25.74044,2425.7,2425.6,0.82445]
[1750493940274,3.89961548,2425.8,2425.7,0.82441]
[1750493940481,0.8244,2425.8,2425.7,0.82441]
[1750493940675,25.7314,2425.8,2425.7,0.82441]
[1750493940875,0.82443,2425.7,2425.6,0.82442]
[1750493944780,0.82436,2425.9,2425.8,0.82435]
[1750493944980,26.89721078,2425.9,2425.8,0.82435]
[1750493946083,0.82439,2425.8,2425.7,0.82438]
[1750493946782,25.72736,2425.9,2425.8,0.82438]
[1750493947082,26.89745275,2425.9,2425.8,0.82438]
[1750493948076,0.82439,2425.8,2425.7,0.82439]
[1750493950187,25.72737,2425.9,2425.8,0.82438]
[1750493950390,26.89822169,2425.9,2425.8,0.82438]
[1750493950689,1.17085169,2425.9,2425.8,0.82438]
[1750493950886,26.06785169,2425.9,2425.8,0.82438]
[1750493951290,26.06785169,2425.9,2425.8,2.89628]
[1750493952385,26.89219169,2425.9,2425.8,2.89628]
[1750493952587,26.06785169,2425.9,2425.8,2.89628]
[1750493952986,26.89219169,2425.9,2425.8,2.89628]
[1750493954476,26.89219169,2425.9,2425.8,0.6646]
[1750493954983,26.89219169,2425.9,2425.8,1.48898]
[1750493955488,26.89219169,2425.9,2425.8,0.6646]
[1750493955988,27.55209169,2425.9,2425.8,0.6646]
[1750493957792,27.55209169,2425.9,2425.8,1.48898]
[1750493959192,0.82441,2425.7,2425.6,0.89291599]
[1750493959386,1.99526169,2425.7,2425.6,0.82444]
[1750493962687,1.17085169,2425.7,2425.6,0.82444]
[1750493962889,26.09285169,2425.7,2425.6,0.82444]
[1750493963289,24.922,2425.7,2425.6,0.82444]
[1750493964193,26.09449442,2425.7,2425.6,0.82444]
[1750493964403,24.922,2425.7,2425.6,1.48194]
[1750493964892,24.922,2425.7,2425.6,2.77084]
[1750493966989,3.2078,2426.0,2425.6,9.32381548]
[1750493967190,24.919,2426.1,2425.8,5.58521548]
[1750493967389,24.919,2426.1,2426.0,0.82431]
[1750493967591,1.17233809,2426.1,2426.0,0.82431]
[1750493967896,1.17233809,2426.1,2426.0,1.50161]
[1750493968097,24.924,2426.3,2426.2,0.82423]
[1750493968291,26.91985731,2426.3,2426.2,0.82423]
[1750493968796,26.91985731,2426.3,2426.2,1.47733]
[1750493974198,1.17164731,2426.3,2426.2,1.47733]
[1750493974399,0.82417,2426.5,2426.4,0.82417]
[1750493974592,26.90721653,2426.5,2426.4,0.82417]
[1750493974993,26.90821653,2426.5,2426.4,0.82417]
[1750493975193,0.82419,2426.4,2426.3,0.82419]
[1750493975399,0.82417,2426.4,2426.3,0.82419]
[1750493976502,0.82419,2426.4,2426.3,0.8242]
[1750493980002,25.73915,2426.5,2426.4,0.82417]
[1750493980202,0.82418,2426.4,2426.3,0.82419]
[1750493983398,25.73916,2426.5,2426.2,2.07977599]
[1750493983605,25.73916,2426.5,2426.4,0.82417]
[1750493983807,26.90662406,2426.5,2426.4,0.82417]
[1750493984206,0.82418,2426.4,2426.3,0.82418]
[1750493984507,25.73916,2426.5,2426.4,0.82417]
[1750493984709,26.90651226,2426.5,2426.4,0.82417]
[1750493984910,26.90651226,2426.5,2426.2,2.07977599]
[1750493985114,24.915,2426.5,2426.2,2.07977599]
[1750493985504,0.82418,2426.4,2426.3,0.82418]
[1750493985703,25.73916,2426.5,2426.4,0.82417]
[1750493986310,25.73916,2426.5,2426.3,0.82418]
[1750493986610,0.82417,2426.4,2426.3,0.82418]
[1750493987111,0.82416,2426.5,2426.4,0.82417]
[1750493987311,0.82418,2426.4,2426.3,0.82418]
[1750493988612,25.72116,2426.5,2426.3,0.82418]
[1750493988999,25.72116,2426.5,2426.4,0.82417]
[1750493990210,26.88887737,2426.5,2426.4,0.82417]
[1750493990412,25.72116,2426.5,2426.4,0.82417]
[1750493990915,26.88876129,2426.5,2426.4,0.89264599]
[1750493993717,6.363,2426.7,2426.6,0.82411]
[1750493993917,31.249,2426.7,2426.6,0.82411]
[1750493994113,24.886,2426.7,2426.6,0.82411]
[1750493996316,2.22883,2426.9,2426.8,0.82404]
[1750493996614,28.28522401,2426.9,2426.8,0.82404]
[1750493996810,27.58572401,2426.9,2426.8,0.82404]
[1750493998621,0.82405,2426.8,2426.7,0.82406]
[1750493998814,1.99244401,2426.8,2426.7,0.82406]
[1750493999215,0.82405,2426.8,2426.7,0.82406]
[1750493999416,1.53233,2426.9,2426.8,0.82404]
[1750493999615,27.58009171,2426.9,2426.8,0.82404]
[1750494000012,27.57909171,2426.9,2426.8,0.82404]
[1750494002714,0.82404,2426.8,2426.7,0.82405]
[1750494002921,4.36721719,2426.8,2426.7,0.82405]
[1750494003920,3.54317719,2426.8,2426.7,0.82405]
[1750494005823,4.36721719,2426.8,2426.7,0.82405]
[1750494006324,3.54317719,2426.8,2426.7,0.82405]
[1750494007228,2.37741548,2426.8,2426.7,0.82405]
[1750494007429,26.41333,2426.9,2426.8,0.82404]
[1750494007620,27.57848427,2426.9,2426.8,0.82404]
[1750494008130,27.57848427,2426.9,2426.8,0.89251599]
[1750494008434,27.56748427,2426.9,2426.8,0.89251599]
[1750494011123,1.87345427,2426.9,2426.8,0.89251599]
[1750494011331,26.03215427,2426.9,2426.8,0.89251599]
[1750494011520,1.16515427,2426.9,2426.8,0.89251599]
[1750494011720,0.6737,2427.1,2427.0,0.82397]
[1750494011921,25.5477,2427.1,2427.0,4.03177]
[1750494012224,26.71276798,2427.1,2427.0,4.03177]
[1750494015022,1.16506798,2427.1,2427.0,4.03177]
[1750494015222,26.03606798,2427.1,2427.0,4.03177]
[1750494016827,1.16506798,2427.1,2427.0,6.40918548]
[1750494017023,6.345,2427.4,2427.3,0.82387]
[1750494017235,28.0788,2427.6,2427.2,4.43715548]
[1750494017430,1.16447558,2427.5,2427.4,0.82383]
[1750494018232,0.665,2427.7,2427.6,0.82377]
[1750494018418,26.6990461,2427.7,2427.6,0.82377]
[1750494019527,27.5227761,2427.7,2427.5,0.82378]
[1750494019720,27.64553,2427.7,2427.5,0.82378]
[1750494019918,27.64553,2427.7,2427.6,0.82377]
[1750494020120,28.80873421,2427.7,2427.6,0.82377]
[1750494020323,26.70220421,2427.7,2427.6,0.82377]
[1750494022232,1.16320421,2427.7,2427.6,0.82377]
[1750494022637,26.03239683,2427.7,2427.6,0.82377]
[1750494023834,24.87,2427.7,2427.6,0.82377]
[1750494029439,25.69373,2427.7,2427.6,0.82377]
[1750494030340,24.87,2427.7,2427.6,0.82377]
[1750494033943,25.69373,2427.7,2427.6,0.82377]
[1750494035638,25.69373,2427.7,2427.6,0.89224599]
[1750494035838,24.87,2427.7,2427.6,0.89224599]
[1750494037149,25.69373,2427.7,2427.6,0.89224599]
[1750494038051,24.87,2427.7,2427.6,0.89224599]
[1750494040560,26.03294411,2427.7,2427.6,0.89224599]
[1750494041159,26.85667411,2427.7,2427.6,0.89224599]
[1750494043263,26.03294411,2427.7,2427.6,0.89224599]
[1750494043455,26.85667411,2427.7,2427.6,0.89224599]
[1750494045262,26.03294411,2427.7,2427.6,0.89224599]
[1750494048661,26.85667411,2427.7,2427.6,0.89224599]
[1750494050463,26.85667411,2427.7,2427.6,0.06847599]
[1750494050858,26.85667411,2427.7,2427.3,3.2078]
[1750494050859,0.82384,2427.4,2427.3,3.2078]
[1750494051061,0.82392,2427.2,2427.1,0.82394]
[1750494051261,25.68192,2427.2,2427.1,0.82394]
[1750494051461,26.84486411,2427.2,2427.1,0.82394]
[1750494051657,28.24696411,2427.2,2427.1,0.82394]
[1750494052253,27.42304411,2427.2,2427.1,0.82394]
[1750494052459,27.42304411,2427.2,2427.0,4.03175]
[1750494052659,26.2601,2427.2,2427.1,0.82394]
[1750494052864,27.42525933,2427.2,2427.1,0.82394]
[1750494055258,26.2601,2427.2,2427.1,0.82394]
[1750494055465,27.42511325,2427.2,2427.1,0.82394]
[1750494056370,28.24901325,2427.2,2427.1,0.82394]
[1750494056762,27.42511325,2427.2,2427.1,0.82394]
[1750494057468,28.24901325,2427.2,2427.1,0.82394]
[1750494058166,27.42511325,2427.2,2427.1,0.82394]
[1750494058368,28.24901325,2427.2,2427.1,0.82394]
[1750494058766,27.42511325,2427.2,2427.1,0.82394]
[1750494059071,26.02301325,2427.2,2427.1,0.82394]
[1750494059273,26.02149844,2427.2,2427.1,0.82394]
[1750494059568,24.858,2427.2,2427.1,0.82394]
[1750494060562,0.6961,2427.3,2427.2,0.8239]
[1750494060768,7.15686,2427.4,2427.3,0.82387]
[1750494061069,0.82387,2427.3,2427.2,0.82389]
[1750494061269,1.98755144,2427.3,2427.2,0.82389]
[1750494063771,0.8239,2427.2,2427.1,1.48253]
[1750494063975,0.82389,2427.3,2427.1,1.48253]
[1750494065074,0.82389,2427.3,2427.2,0.89237599]
[1750494065267,1.98735461,2427.3,2427.2,0.89237599]
[1750494065874,1.98735461,2427.3,2427.2,0.06847599]
[1750494066270,3.35115461,2427.3,2427.2,0.06847599]
[1750494072779,5.01515326,2427.3,2427.2,0.06847599]
[1750494077885,1.16346461,2427.3,2427.2,0.06847599]
[1750494078091,7.49746461,2427.3,2427.2,2.55637464]
[1750494078290,33.18133461,2427.3,2427.2,1.73247464]
[1750494078486,33.18133461,2427.3,2427.2,0.89237599]
[1750494079089,33.18133461,2427.3,2427.2,0.06847599]
[1750494079592,35.55796254,2427.3,2427.2,0.06847599]
[1750494084293,33.18133461,2427.3,2427.2,0.06847599]
[1750494084686,33.85953461,2427.3,2427.2,0.06847599]
[1750494097798,33.86179203,2427.3,2427.2,0.06847599]
[1750494098899,35.52572178,2427.3,2427.2,0.06847599]
[1750494101908,4.33172178,2427.3,2427.2,0.06847599]
[1750494102095,35.52272178,2427.3,2427.2,0.06847599]
[1750494103516,34.84452178,2427.3,2427.2,0.06847599]
[1750494103905,34.84452178,2427.3,2427.2,1.41947599]
[1750494105608,32.35672203,2427.3,2427.2,3.90730574]
[1750494105809,33.18059203,2427.3,2427.2,1.41947599]
[1750494108205,26.84859203,2427.3,2427.2,1.41947599]
[1750494115120,26.8477916,2427.3,2427.2,1.41947599]
[1750494119733,27.5320916,2427.3,2427.2,1.41947599]
[1750494130546,0.82395,2427.1,2426.9,4.03178]
[1750494130747,27.68385135,2427.0,2426.9,4.71828]
[1750494130949,27.68385135,2427.0,2426.9,1.51048]
[1750494132647,26.0199216,2427.0,2426.9,1.51048]
[1750494136049,26.8438916,2427.0,2426.9,1.51048]
[1750494136249,26.0199216,2427.0,2426.9,1.51048]
[1750494138348,26.8438916,2427.0,2426.9,1.51048]
[1750494138551,26.0199216,2427.0,2426.9,1.51048]
[1750494139249,26.8438916,2427.0,2426.9,1.51048]
[1750494140149,26.8438916,2427.0,2426.9,1.57895599]
[1750494140350,26.0199216,2427.0,2426.9,1.57895599]
[1750494141051,26.8438916,2427.0,2426.9,1.57895599]
[1750494142752,26.0199216,2427.0,2426.9,1.57895599]
[1750494143354,26.8438916,2427.0,2426.9,1.57895599]
[1750494143756,26.0199216,2427.0,2426.9,1.57895599]
[1750494144055,26.8438916,2427.0,2426.9,1.57895599]
[1750494144255,26.0199216,2427.0,2426.9,1.57895599]
[1750494144758,26.8438916,2427.0,2426.9,1.57895599]
[1750494144945,26.0199216,2427.0,2426.9,1.57895599]
[1750494146946,26.8438916,2427.0,2426.9,1.57895599]
[1750494147150,26.0199216,2427.0,2426.9,1.57895599]
[1750494147958,26.8438916,2427.0,2426.9,1.57895599]
[1750494148663,26.0199216,2427.0,2426.9,1.57895599]
[1750494149555,26.8438916,2427.0,2426.9,1.57895599]
[1750494150261,26.0199216,2427.0,2426.9,1.57895599]
[1750494150452,26.8438916,2427.0,2426.9,1.57895599]
[1750494153456,26.8438916,2427.0,2426.9,0.06847599]
[1750494153657,0.82417,2426.4,2426.3,3.2078]
[1750494153864,0.82433,2426.0,2425.7,4.7233]
[1750494154058,26.07655164,2425.9,2425.7,4.7233]
[1750494154358,1.16356968,2425.8,2425.7,4.7233]
[1750494154659,0.82438,2425.8,2425.7,3.8989]
[1750494154862,25.73737,2425.9,2425.7,3.8989]
[1750494155555,2.48830975,2425.8,2425.7,0.6911]
[1750494155762,0.82441,2425.7,2425.6,0.6423]
[1750494156158,1.66392975,2425.8,2425.6,1.46675]
[1750494156159,2.48832975,2425.8,2425.6,1.46675]
[1750494156959,0.8244,2425.8,2425.6,1.46675]
[1750494157265,0.82441,2425.7,2425.6,0.6423]
[1750494159567,2.37957393,2425.8,2425.4,4.0323]
[1750494159757,0.82448,2425.5,2425.4,3.2078]
[1750494159963,25.77447,2425.6,2425.4,3.2078]
[1750494160164,25.77447,2425.6,2425.4,4.03231]
[1750494160364,0.82448,2425.5,2425.4,3.2078]
[1750494160556,2.0443,2425.8,2425.3,1.3262]
[1750494160762,32.10443,2425.7,2425.5,0.82447]
[1750494160963,32.10443,2425.7,2425.4,4.03229]
[1750494161265,0.82445,2425.6,2425.4,4.03229]
[1750494161667,0.82445,2425.6,2425.4,4.03231]
[1750494161865,0.82447,2425.6,2425.4,3.2078]
[1750494162167,0.82448,2425.5,2425.4,3.2078]
[1750494163669,33.65957393,2425.7,2425.3,1.3262]
[1750494163969,0.82451,2425.5,2425.3,2.15075]
[1750494164274,24.949,2425.4,2425.3,2.15075]
[1750494166672,25.77351,2425.4,2425.3,2.15075]
[1750494168682,24.949,2425.4,2425.3,2.15075]
[1750494168872,25.77351,2425.4,2425.3,2.15075]
[1750494169180,25.77351,2425.4,2425.3,1.3262]
[1750494169474,25.77351,2425.4,2425.3,1.39467599]
[1750494170066,25.77351,2425.4,2425.3,2.21922599]
[1750494173669,28.15308393,2425.4,2425.3,0.06847599]
[1750494173975,0.82463,2425.1,2425.0,0.82461]
[1750494174175,0.82463,2425.1,2425.0,1.48701]
[1750494175473,0.82461,2425.2,2425.0,1.48701]
[1750494176771,2.37957393,2425.1,2424.6,3.869]
[1750494176974,0.82474,2424.8,2424.6,4.69377]
[1750494179079,0.648,2424.9,2424.7,0.82475]
[1750494179282,0.82472,2424.8,2424.6,4.69377]
[1750494179980,0.82472,2424.8,2424.7,0.82475]
[1750494180276,0.648,2424.9,2424.6,4.69377]
[1750494180482,0.82475,2424.7,2424.6,0.6612]
[1750494180676,0.82474,2424.8,2424.6,1.48599]
[1750494180871,1.9454,2424.9,2424.6,0.6612]
[1750494181072,0.82475,2424.8,2424.6,1.48599]
[1750494181273,4.32497393,2424.9,2424.6,0.6612]
[1750494181474,0.82475,2424.7,2424.6,0.6612]
[1750494181780,2.12214,2424.8,2424.6,1.48599]
[1750494181982,0.82474,2424.8,2424.6,1.48599]
[1750494182784,1.4727,2424.9,2424.7,0.82474]
[1750494183489,3.02757393,2424.9,2424.5,0.6614]
[1750494183685,4.44127393,2424.9,2424.5,0.6614]
[1750494183886,0.82473,2424.8,2424.5,0.6614]
[1750494184087,2.0617,2424.9,2424.5,0.6614]
[1750494184285,2.8864,2424.9,2424.7,0.82474]
[1750494185283,4.44127393,2424.9,2424.6,0.06847599]
[1750494185491,3.20432393,2424.7,2424.6,0.06847599]
[1750494186488,4.57072393,2424.7,2424.6,0.06847599]
[1750494187482,5.73305473,2424.7,2424.6,0.06847599]
[1750494187789,0.8249,2424.3,2424.1,0.82495]
[1750494187979,24.995,2424.3,2424.2,0.82492]
[1750494195593,0.82475,2424.7,2424.6,0.82475]
[1750494195792,25.82675,2424.7,2424.6,0.82475]
[1750494195994,25.82675,2424.7,2424.6,0.89322599]
[1750494196392,25.002,2424.7,2424.6,0.89322599]
[1750494197091,25.002,2424.7,2424.6,1.56002599]
[1750494199202,0.82473,2424.8,2424.7,0.82475]
[1750494199391,25.82273,2424.8,2424.7,0.82475]
[1750494200493,1.16218952,2424.8,2424.7,0.82475]
[1750494200694,25.81973,2424.8,2424.7,0.82474]
[1750494201402,26.98238009,2424.8,2424.7,0.82474]
[1750494201993,26.98238395,2424.8,2424.7,0.82474]
[1750494202195,26.15773497,2424.8,2424.7,0.82474]
[1750494202602,26.15373497,2424.8,2424.7,0.82474]
[1750494205800,26.97845497,2424.8,2424.7,0.82474]
[1750494206306,26.15373497,2424.8,2424.7,0.82474]
[1750494206510,26.97845497,2424.8,2424.7,0.82474]
[1750494207208,26.15373497,2424.8,2424.7,0.82474]
[1750494207612,26.97845497,2424.8,2424.7,0.82474]
[1750494207912,1.98745497,2424.8,2424.7,0.82474]
[1750494208110,26.96945497,2424.8,2424.7,0.82474]
[1750494208409,26.14473497,2424.8,2424.7,0.82474]
[1750494209608,26.96945497,2424.8,2424.7,0.82474]
[1750494209911,0.82475,2424.7,2424.6,0.06847599]
[1750494210103,2.64426876,2424.7,2424.6,0.06847599]
[1750494210305,2.64426876,2424.7,2424.6,0.89326599]
[1750494210815,1.81951876,2424.7,2424.6,0.89326599]
[1750494212212,11.41584269,2424.7,2424.6,0.06847599]
[1750494212402,13.40514269,2424.7,2424.6,0.06847599]
[1750494214816,0.8249,2424.3,2424.1,1.47676]
[1750494215010,26.52312,2424.2,2424.1,0.6518]
[1750494215516,25.6982,2424.2,2424.1,0.6518]
[1750494215814,25.6982,2424.2,2424.1,1.47676]
[1750494216409,25.6982,2424.2,2424.1,0.6518]
[1750494216914,25.6982,2424.2,2424.1,1.47676]
[1750494217115,7.21688,2424.4,2424.2,0.82492]
[1750494217315,25.024,2424.3,2424.2,0.82492]
[1750494219020,7.0792,2424.4,2424.3,0.82489]
[1750494219218,33.26764124,2424.4,2424.3,0.82489]
[1750494219917,1.85064124,2424.4,2424.3,0.82489]
[1750494220118,26.87664124,2424.4,2424.3,0.82489]
[1750494223214,26.87664124,2424.4,2424.3,4.03269]
[1750494223422,26.1894829,2424.4,2424.3,4.03269]
[1750494223618,3.2078,2424.9,2424.5,0.82482]
[1750494223818,27.01829647,2424.8,2424.6,1.52808]
[1750494224019,1.98830647,2424.7,2424.6,1.52808]
[1750494224216,1.98830647,2424.7,2424.6,0.7033]
[1750494224414,1.98830647,2424.7,2424.6,0.77177599]
[1750494228121,1.98830647,2424.7,2424.6,1.59656599]
[1750494228421,1.16355647,2424.7,2424.6,1.59656599]
[1750494228723,1.98830647,2424.7,2424.6,1.59656599]
[1750494228924,1.98830647,2424.7,2424.6,0.77177599]
[1750494229423,1.16355647,2424.7,2424.6,1.59656599]
[1750494230519,1.98830647,2424.7,2424.6,1.59656599]
[1750494230725,1.16355647,2424.7,2424.6,1.59656599]